bitfinex-derivatives/quotes_ETHF0:USTF0_20250616
["timestamp","ask_amount","ask_price","bid_price","bid_amount"]
[1750081383537,0.76398,2617.4,2617.3,2.1141]
[1750081383833,25.10898,2617.4,2617.3,2.1141]
[1750081384026,24.345,2617.4,2617.3,2.1141]
[1750081384226,0.06737406,2617.8,2617.7,0.76389]
[1750081384434,31.81025406,2617.8,2617.7,0.76389]
[1750081384634,7.47725406,2617.8,2617.7,0.76389]
[1750081384837,31.73688,2617.8,2617.7,0.76389]
[1750081385038,7.40988,2617.8,2617.7,0.76389]
[1750081385239,31.73686,2617.8,2617.7,0.76389]
[1750081385440,31.74386,2617.8,2617.7,0.76389]
[1750081386240,0.76392,2617.6,2617.5,3.2078]
[1750081386429,25.09392,2617.6,2617.5,3.97175]
[1750081387031,0.76389,2617.8,2617.7,0.76386]
[1750081387233,25.08589,2617.8,2617.7,0.76386]
[1750081388333,0.76376,2618.2,2618.1,0.76374]
[1750081388539,0.76376,2618.2,2618.1,3.97154]
[1750081388540,25.06776,2618.2,2618.1,3.97154]
[1750081388836,1.90951,2618.0,2617.6,2.0311]
[1750081389038,30.949,2617.9,2617.4,3.2078]
[1750081389238,30.949,2617.9,2617.4,3.97174]
[1750081389239,0.76395,2617.5,2617.4,3.97174]
[1750081389537,24.32,2617.5,2617.4,3.97174]
[1750081390542,25.08395,2617.5,2617.4,3.97174]
[1750081390730,24.32,2617.5,2617.4,3.97174]
[1750081390934,25.08395,2617.5,2617.4,3.97174]
[1750081391132,0.764,2617.4,2617.2,0.6583]
[1750081391334,24.32,2617.5,2617.4,0.76398]
[1750081391743,0.76394,2617.6,2617.5,0.76395]
[1750081391943,25.06594,2617.6,2617.5,0.76395]
[1750081392143,0.76395,2617.5,2617.4,3.97176]
[1750081392546,0.764,2617.3,2617.2,0.764]
[1750081392843,0.76406,2617.1,2617.0,0.00573252]
[1750081393044,10.21762506,2617.1,2617.0,0.00573252]
[1750081393339,0.76406,2617.2,2617.0,3.21353252]
[1750081393545,0.06737406,2617.4,2617.3,0.764]
[1750081393746,25.13535406,2617.4,2617.3,3.9718]
[1750081394049,24.304,2617.4,2617.3,3.9718]
[1750081394539,25.06798,2617.4,2617.3,3.2078]
[1750081394741,4.63847,2617.8,2617.7,0.76389]
[1750081394942,0.76385,2617.9,2617.8,0.76384]
[1750081395140,31.73985,2617.9,2617.8,0.76384]
[1750081395336,6.645,2617.9,2617.8,0.76384]
[1750081395542,7.47617406,2618.0,2617.9,0.76383]
[1750081395842,31.80217406,2618.0,2617.9,0.76383]
[1750081396043,31.73481,2618.0,2617.9,0.76383]
[1750081396239,6.645,2618.0,2617.9,0.76383]
[1750081396444,31.7378,2618.0,2617.9,0.76383]
[1750081396638,30.974,2618.0,2617.9,0.76383]
[1750081397146,30.967,2618.0,2617.9,0.76383]
[1750081397746,30.967,2618.0,2617.7,3.2078]
[1750081397946,0.76386,2617.8,2617.7,3.2078]
[1750081398446,0.76385,2617.9,2617.8,0.76384]
[1750081398646,0.76386,2617.8,2617.7,3.2078]
[1750081398849,0.76387,2617.8,2617.7,0.76386]
[1750081399447,0.76385,2617.9,2617.8,0.76383]
[1750081399644,25.07085,2617.9,2617.8,0.76383]
[1750081400040,24.307,2617.9,2617.6,3.2078]
[1750081400242,0.06737406,2617.7,2617.3,6.4725]
[1750081400446,6.71237406,2617.7,2617.6,0.76392]
[1750081400747,31.77726406,2617.7,2617.6,0.76392]
[1750081401145,31.01337406,2617.7,2617.6,0.76392]
[1750081401345,24.36737406,2617.7,2617.6,3.97172]
[1750081402546,32.57517406,2617.7,2617.0,0.00573252]
[1750081402846,0.76406,2617.1,2617.0,0.00573252]
[1750081403047,31.71606,2617.1,2617.0,0.00573252]
[1750081403545,34.92386,2617.1,2617.0,0.00573252]
[1750081404042,39.92386,2617.1,2617.0,0.00573252]
[1750081404843,34.92486,2617.1,2617.0,0.00573252]
[1750081405041,34.91886,2617.1,2617.0,0.76982252]
[1750081405245,34.91886,2617.1,2617.0,0.00573252]
[1750081406044,3.97186,2617.1,2617.0,0.00573252]
[1750081406342,34.91686,2617.1,2617.0,0.76982252]
[1750081406650,30.945,2617.1,2617.0,0.76982252]
[1750081407044,0.76403,2617.3,2617.2,0.76403]
[1750081407451,31.66603,2617.3,2617.2,0.76403]
[1750081407650,0.76406,2617.2,2617.1,0.76405]
[1750081407950,0.76405,2617.2,2617.1,0.76403]
[1750081408249,31.66603,2617.3,2617.2,0.76403]
[1750081408650,0.76405,2617.2,2617.1,0.76404]
[1750081408846,31.66602,2617.3,2617.2,0.76403]
[1750081409145,23.107,2617.4,2617.3,0.764]
[1750081409344,29.707,2617.4,2617.3,0.764]
[1750081409551,0.76406,2617.2,2617.0,0.00573252]
[1750081409738,34.51962506,2617.1,2617.0,0.00573252]
[1750081410552,35.86742506,2617.1,2617.0,0.00573252]
[1750081410746,39.07522506,2617.1,2617.0,0.00573252]
[1750081411440,0.76437,2616.1,2616.0,0.76436]
[1750081411643,33.75656506,2616.1,2615.6,1.9428]
[1750081411840,33.75656506,2616.1,2615.6,3.85403]
[1750081412051,25.06736,2616.1,2616.0,0.76438]
[1750081412240,24.303,2616.1,2615.7,1.3487]
[1750081412446,0.76444,2615.8,2615.7,0.76446]
[1750081412646,24.308,2615.8,2615.6,0.00382168]
[1750081412849,0.76447,2615.7,2615.6,0.00382168]
[1750081413050,30.909,2615.8,2615.6,0.00382168]
[1750081413350,0.76447,2615.7,2615.6,0.76830168]
[1750081413551,0.76447,2615.7,2615.6,0.76832168]
[1750081413741,30.909,2615.8,2615.7,0.76447]
[1750081414145,9.8088,2616.0,2615.8,0.76443]
[1750081414346,24.305,2615.9,2615.8,0.76443]
[1750081415051,6.601,2616.0,2615.9,0.76441]
[1750081415261,0.00573252,2616.2,2616.1,0.76436]
[1750081415551,30.91173252,2616.2,2616.1,0.76436]
[1750081415751,30.91173252,2616.2,2615.6,0.00382168]
[1750081415959,0.76437,2616.1,2616.0,0.76438]
[1750081416459,32.25583252,2616.2,2616.1,0.76436]
[1750081416649,0.00573252,2616.2,2616.1,0.76436]
[1750081416847,30.91873252,2616.2,2616.1,0.76436]
[1750081417553,30.91873252,2616.2,2616.1,3.97216]
[1750081417948,0.00573252,2616.2,2616.1,3.97216]
[1750081418359,2.52e-06,2616.2,2616.1,8.97216]
[1750081418565,2.52e-06,2616.2,2616.1,3.97216]
[1750081420159,24.31000252,2616.2,2616.1,3.97216]
[1750081422058,0.76433252,2616.2,2616.1,3.2078]
[1750081422356,25.07533252,2616.2,2616.1,3.2078]
[1750081422559,0.76438,2616.0,2615.9,0.7644]
[1750081423260,0.76447,2615.8,2615.7,0.76446]
[1750081423458,0.76447,2615.7,2615.6,3.21162168]
[1750081423659,0.76447,2615.7,2615.6,0.00382168]
[1750081424157,25.14283406,2615.8,2615.6,0.00382168]
[1750081424461,0.06737406,2615.8,2615.7,0.76447]
[1750081424667,6.603,2616.0,2615.9,0.76441]
[1750081424864,31.67738,2616.0,2615.9,0.76441]
[1750081425165,30.913,2616.0,2615.9,0.76441]
[1750081425362,2.52e-06,2616.2,2616.1,0.76435]
[1750081425562,31.68033252,2616.2,2616.1,0.76435]
[1750081426363,31.68034252,2616.2,2616.1,0.76435]
[1750081426665,30.91600252,2616.2,2616.1,0.76435]
[1750081427062,31.68033252,2616.2,2616.1,0.76435]
[1750081427260,30.91600252,2616.2,2616.1,0.76435]
[1750081427857,2.52e-06,2616.2,2616.1,0.76435]
[1750081428057,24.31300252,2616.2,2616.1,0.76435]
[1750081428357,24.31300252,2616.2,2616.1,8.97215]
[1750081428358,2.52e-06,2616.2,2616.1,8.97215]
[1750081428868,0.76433252,2616.2,2616.1,3.97215]
[1750081429056,0.76433252,2616.2,2616.1,0.76435]
[1750081429257,2.52e-06,2616.2,2616.1,0.76435]
[1750081431962,2.52e-06,2616.2,2616.1,5.76435]
[1750081432164,2.52e-06,2616.2,2616.1,7.03635]
[1750081432478,0.76398,2617.4,2617.3,0.764]
[1750081432664,25.07698,2617.4,2617.3,0.764]
[1750081432965,32.9298,2617.6,2617.5,0.76395]
[1750081433259,57.2418,2617.6,2617.5,0.76395]
[1750081433461,0.76388,2617.8,2617.7,0.76389]
[1750081433656,0.00573252,2617.8,2617.7,0.76389]
[1750081434064,0.00573252,2617.8,2617.7,2.68329]
[1750081435263,0.00573252,2617.8,2617.6,3.2078]
[1750081435458,0.76397,2617.4,2617.3,2.29069468]
[1750081435658,12.66136506,2617.7,2617.4,0.76396]
[1750081435659,25.07395,2617.5,2617.4,0.76396]
[1750081436166,24.31,2617.5,2617.4,0.76396]
[1750081436365,25.07395,2617.5,2617.3,0.76971252]
[1750081436565,0.76398,2617.4,2617.3,0.00573252]
[1750081436761,25.07396,2617.5,2617.4,0.76398]
[1750081437166,10.4755,2617.7,2617.6,0.76392]
[1750081437461,35.54639,2617.7,2617.6,0.76392]
[1750081437666,34.7825,2617.7,2617.3,0.00573252]
[1750081437869,0.76392,2617.6,2617.5,0.76394]
[1750081438668,0.76398,2617.4,2617.3,0.76972252]
[1750081438869,24.307,2617.4,2617.3,0.76972252]
[1750081439670,0.6657,2617.7,2617.6,0.76392]
[1750081439871,0.00573252,2617.8,2617.7,0.76389]
[1750081440074,25.07659252,2617.8,2617.7,0.76389]
[1750081440271,24.31273252,2617.8,2617.7,0.76389]
[1750081440573,24.31273252,2617.8,2617.3,0.00573252]
[1750081440574,0.76396,2617.5,2617.3,0.00573252]
[1750081440761,0.76398,2617.4,2617.3,0.00573252]
[1750081440965,0.76398,2617.4,2617.3,0.76973252]
[1750081440966,24.305,2617.4,2617.3,0.76973252]
[1750081441659,25.06898,2617.4,2617.3,0.00573252]
[1750081441864,44.03524506,2617.4,2617.3,2.52e-06]
[1750081442066,67.14724506,2617.4,2617.3,2.52e-06]
[1750081443663,42.84224506,2617.4,2617.3,2.52e-06]
[1750081443867,25.18088,2617.4,2617.3,2.52e-06]
[1750081444066,31.0179,2617.4,2617.3,0.76400252]
[1750081444268,55.3219,2617.4,2617.3,0.76400252]
[1750081444569,30.905,2617.4,2617.3,0.76400252]
[1750081444773,1.43553,2617.6,2617.3,2.52e-06]
[1750081445075,7.36489,2617.7,2617.6,0.76392]
[1750081445376,0.76395,2617.6,2617.5,0.76393]
[1750081445563,24.304,2617.6,2617.5,0.76393]
[1750081445769,24.304,2617.6,2617.3,1.28860252]
[1750081445770,0.76398,2617.4,2617.3,2.52e-06]
[1750081445971,13.49271912,2617.4,2617.3,2.52e-06]
[1750081446472,4.65395406,2617.4,2617.3,0.76400252]
[1750081446676,24.37437406,2617.4,2617.3,0.76400252]
[1750081446874,25.07589,2617.7,2617.6,0.76392]
[1750081448076,0.06737406,2617.4,2617.3,0.76400252]
[1750081448280,24.38737406,2617.4,2617.3,0.76400252]
[1750081448575,0.06737406,2617.4,2617.3,5.76400252]
[1750081448770,0.00573252,2617.8,2617.7,0.76389]
[1750081448973,24.33173252,2617.8,2617.7,3.97169]
[1750081449173,24.33173252,2617.8,2617.7,0.76389]
[1750081449174,25.09562252,2617.8,2617.7,0.76389]
[1750081449373,24.34673252,2617.8,2617.7,0.76389]
[1750081449677,0.00573252,2617.8,2617.7,3.97169]
[1750081450679,3.2078,2619.3,2617.7,8.2078]
[1750081450971,7.36341,2619.4,2618.8,3.2078]
[1750081451174,24.363,2619.3,2619.1,3.2078]
[1750081451477,24.367,2619.3,2619.1,3.2078]
[1750081451680,24.367,2619.3,2619.2,0.76345]
[1750081451874,0.76345,2619.2,2619.1,0.76348]
[1750081452178,24.367,2619.3,2618.9,1.28133252]
[1750081452379,0.76349,2619.1,2618.9,1.28133252]
[1750081452578,0.76349,2619.1,2619.0,0.7635]
[1750081452774,0.76348,2619.1,2618.9,2.04486252]
[1750081452976,24.367,2619.3,2618.9,2.04486252]
[1750081453272,24.367,2619.3,2618.9,0.76924252]
[1750081453473,12.03719758,2619.5,2618.9,0.76924252]
[1750081453474,0.76348,2619.1,2618.9,0.76926252]
[1750081453674,0.76351,2619.0,2618.9,0.00573252]
[1750081454073,1.90853,2619.4,2618.9,0.00573252]
[1750081454074,9.45356506,2619.4,2618.9,0.00573252]
[1750081454267,0.76341,2619.4,2618.9,1.31533252]
[1750081454469,2.58363252,2619.5,2619.2,0.76343]
[1750081454669,2.58363252,2619.5,2619.1,0.76346]
[1750081454874,2.58363252,2619.5,2619.4,0.76339]
[1750081455081,0.00573252,2619.5,2619.4,0.76339]
[1750081455382,0.00573252,2619.5,2619.4,2.07299]
[1750081455775,9.45929758,2619.5,2619.0,3.2078]
[1750081456076,3.2078,2619.3,2618.9,0.00573252]
[1750081456282,0.00573252,2619.5,2619.0,3.2078]
[1750081456471,0.76348,2619.1,2619.0,3.2078]
[1750081457276,0.76351,2619.0,2618.9,0.00573252]
[1750081457472,1.90856,2619.3,2618.9,0.00573252]
[1750081457473,0.76349,2619.1,2618.9,0.00573252]
[1750081457672,0.76351,2619.0,2618.9,0.76925252]
[1750081458078,0.76349,2619.1,2619.0,0.7635]
[1750081458581,0.76348,2619.2,2618.9,0.00573252]
[1750081458778,3.2078,2619.3,2618.9,1.34553252]
[1750081458978,0.76351,2619.0,2618.9,1.34553252]
[1750081459184,0.76351,2619.0,2618.9,0.00573252]
[1750081459482,3.2078,2619.3,2618.9,0.00573252]
[1750081459685,0.65133252,2619.5,2619.4,0.76339]
[1750081459979,0.00573252,2619.5,2619.4,0.76339]
[1750081460186,0.00573252,2619.5,2619.4,6.38619]
[1750081460377,0.00573252,2619.5,2619.4,2.66359]
[1750081461887,0.76909252,2619.5,2619.4,1.38619]
[1750081462188,0.00573252,2619.5,2619.4,1.38619]
[1750081463190,0.76909252,2619.5,2619.4,0.6228]
[1750081463379,0.76339,2619.4,2619.3,3.97122]
[1750081463686,0.76339,2619.4,2619.3,3.2078]
[1750081464176,0.06737406,2619.3,2619.2,0.76345]
[1750081465279,0.06737406,2619.3,2619.2,5.76345]
[1750081466383,0.06737406,2619.3,2619.2,0.76345]
[1750081468081,0.6187,2620.1,2619.3,3.81713]
[1750081468380,0.6187,2620.1,2619.8,3.2078]
[1750081468381,0.76325,2619.9,2619.8,3.2078]
[1750081468783,0.6187,2620.1,2620.0,0.76322]
[1750081468982,0.76315,2620.3,2619.8,5.11598]
[1750081469182,0.00573252,2620.3,2620.2,3.97096]
[1750081469584,0.76886252,2620.3,2620.2,3.2078]
[1750081469786,9.45929758,2620.3,2619.9,3.2078]
[1750081469995,0.7632,2620.1,2620.0,0.7632]
[1750081470782,0.76327,2619.9,2619.8,0.76325]
[1750081471384,1.90791,2620.2,2619.6,3.8498]
[1750081471385,9.45356506,2620.0,2619.6,3.8498]
[1750081471587,0.76332,2619.7,2619.6,0.76331]
[1750081472683,0.6147,2619.9,2619.3,6.41324]
[1750081472684,0.76335,2619.6,2619.5,0.76334]
[1750081473383,1.3403,2619.8,2619.3,3.2078]
[1750081473384,9.45356506,2619.7,2619.3,3.2078]
[1750081473697,0.76335,2619.6,2619.5,0.76335]
[1750081473883,0.76339,2619.5,2619.4,0.76339]
[1750081474083,1.3403,2619.6,2619.3,3.2078]
[1750081474392,0.83075406,2619.5,2619.4,0.76338]
[1750081474693,0.06737406,2619.5,2619.4,0.76338]
[1750081475389,0.76339,2619.4,2619.3,0.7634]
[1750081475589,0.83075406,2619.5,2619.4,0.76339]
[1750081475788,0.06737406,2619.5,2619.4,0.76339]
[1750081476693,0.83073406,2619.5,2619.4,0.76339]
[1750081477393,0.76339,2619.4,2619.3,0.7634]
[1750081477690,0.06737406,2619.5,2619.4,0.76339]
[1750081477993,0.76318,2620.2,2620.1,0.76316]
[1750081478192,0.00573252,2620.3,2620.2,0.76316]
[1750081478193,1.42328252,2620.3,2620.2,0.76316]
[1750081478494,0.00573252,2620.3,2620.2,3.97096]
[1750081478797,0.6593,2620.8,2620.2,3.2078]
[1750081479099,0.76307,2620.6,2620.5,0.76306]
[1750081479392,1.2988,2620.7,2620.2,3.2078]
[1750081479691,0.76303,2620.7,2620.6,0.76304]
[1750081479899,2.06183,2620.7,2620.6,0.39082753]
[1750081480490,12.39678904,2620.8,2620.7,0.76301]
[1750081480491,2.94322398,2620.8,2620.7,0.76301]
[1750081480894,2.28392398,2620.8,2620.7,0.76301]
[1750081481192,2.28392398,2620.8,2620.5,5.11548]
[1750081481193,0.00573252,2620.9,2620.8,0.76299]
[1750081481383,0.00573252,2620.9,2620.8,3.97079]
[1750081482885,0.76869252,2620.9,2620.6,0.6138]
[1750081483094,0.00573252,2620.9,2620.8,0.76299]
[1750081483290,0.00573252,2620.9,2620.8,3.97079]
[1750081484092,5.32915595,2622.1,2620.8,17.66136506]
[1750081484393,3.822,2623.7,2620.8,17.66136506]
[1750081484394,5.31856959,2624.5,2624.3,0.76197]
[1750081484598,0.07620789,2624.4,2624.3,3.96977]
[1750081484799,10.80575656,2625.4,2624.3,3.96977]
[1750081484800,7.59795656,2625.4,2624.3,8.2078]
[1750081485094,5.32915821,2624.8,2624.7,0.76185]
[1750081485298,0.76185,2624.7,2624.6,3.21352115]
[1750081485594,12.28085821,2624.7,2624.6,3.21352115]
[1750081485797,7.84375821,2624.3,2623.6,3.2078]
[1750081486098,7.84375821,2624.3,2621.7,9.822]
[1750081486099,5.32915821,2624.5,2624.0,3.2078]
[1750081486300,5.32915821,2624.5,2624.1,1.23887019]
[1750081486488,2.5146,2624.4,2624.0,3.2078]
[1750081486793,0.07619918,2624.7,2624.3,3.2078]
[1750081486794,5.33487936,2624.5,2624.3,3.2078]
[1750081486998,5.32915821,2624.3,2623.9,3.97557115]
[1750081487199,0.0762137,2624.2,2623.9,3.21352115]
[1750081487494,2.5908137,2624.2,2623.9,3.21352115]
[1750081487697,2.5146,2624.1,2623.9,3.21352115]
[1750081487895,2.5908166,2624.1,2623.9,3.21352115]
[1750081488100,2.5908166,2624.1,2624.0,0.76205]
[1750081488490,0.0762166,2624.1,2624.0,0.76205]
[1750081488997,3.21352115,2624.5,2624.3,0.76194]
[1750081489295,2.5146,2624.4,2624.3,0.76194]
[1750081489496,0.00572115,2624.5,2624.3,0.76195]
[1750081489694,0.76198,2624.3,2623.9,3.21352115]
[1750081489902,6.55935821,2624.2,2623.9,3.21352115]
[1750081490099,1.2302,2624.2,2623.9,3.21352115]
[1750081490301,20.50512327,2624.0,2623.9,0.00572115]
[1750081490598,11.81360821,2624.0,2623.9,0.00572115]
[1750081491100,14.82885821,2624.0,2622.9,1.13866541]
[1750081491297,5.32915821,2623.0,2622.5,1.13866541]
[1750081491497,5.32915821,2622.7,2622.5,1.13866541]
[1750081491798,1.2919,2622.6,2622.5,0.76249]
[1750081491998,3.8065,2622.6,2622.5,0.76249]
[1750081492307,3.8065,2622.6,2622.5,0.8387531]
[1750081492600,3.8065,2622.6,2622.5,2.35697364]
[1750081492799,3.8065,2622.6,2622.5,0.0762631]
[1750081493101,7.61032736,2622.6,2622.5,0.0762631]
[1750081493294,4.9411631,2622.6,2622.5,0.0762631]
[1750081493495,4.9411631,2622.6,2622.5,3.07840902]
[1750081493802,0.76249,2622.5,2622.4,3.00214592]
[1750081493998,0.76249,2622.5,2622.3,0.00572115]
[1750081493999,4.9412231,2622.4,2622.3,0.00572115]
[1750081494799,4.1787031,2622.4,2622.3,0.76827115]
[1750081494996,0.76248,2622.6,2622.3,0.76827115]
[1750081495203,4.1787031,2622.5,2622.4,0.76252]
[1750081495403,0.76249,2622.5,2622.4,2.99863464]
[1750081495596,4.9411931,2622.5,2622.4,2.24920978]
[1750081495793,4.1787031,2622.5,2622.4,3.01172978]
[1750081496102,3.21352115,2622.8,2622.7,0.76243]
[1750081496402,3.2078,2623.7,2622.7,1.90609]
[1750081496592,1.348,2623.6,2623.3,1.12427219]
[1750081496800,0.76226,2623.3,2623.2,1.12427219]
[1750081496998,0.76232,2623.1,2623.0,1.12427219]
[1750081497298,4.9410231,2623.1,2623.0,1.12427219]
[1750081497507,1.2455,2623.2,2623.0,1.12427219]
[1750081497800,1.2455,2623.2,2623.1,0.76232]
[1750081498204,0.00572115,2623.3,2623.2,0.76229]
[1750081498403,0.00572115,2623.3,2623.2,3.71137563]
[1750081498604,4.94668425,2623.3,2623.2,2.94908563]
[1750081498803,6.19218425,2623.3,2623.2,1.45057064]
[1750081498999,6.19218425,2623.3,2623.2,2.57454406]
[1750081499701,6.19218425,2623.3,2623.2,1.45057064]
[1750081500094,5.42992425,2623.3,2623.2,2.57454406]
[1750081500303,4.5128,2624.3,2623.4,1.90553]
[1750081500503,4.1787031,2623.9,2623.8,0.76209]
[1750081500693,4.1787031,2623.9,2623.8,3.71035921]
[1750081500892,0.06737406,2624.1,2623.8,1.45057064]
[1750081501096,0.06737406,2624.1,2624.0,0.76206]
[1750081501399,0.06737406,2624.1,2624.0,2.21263064]
[1750081501612,0.00572115,2624.3,2624.0,9.65837064]
[1750081501801,3.2078,2625.3,2624.1,1.45057064]
[1750081501998,4.1787031,2624.8,2624.7,2.25840406]
[1750081502196,0.76179,2625.0,2624.8,0.7618]
[1750081502509,3.96956,2625.0,2624.9,2.57206379]
[1750081502708,13.1482631,2625.0,2624.9,1.45057064]
[1750081503009,0.76191,2624.5,2624.4,1.12149315]
[1750081503197,3.2078,2624.8,2624.3,1.49528912]
[1750081503397,7.3865031,2624.8,2624.7,0.76185]
[1750081503597,4.1787031,2624.8,2624.7,3.96965]
[1750081503798,0.76178,2625.0,2624.9,0.76179]
[1750081504110,0.00570347,2625.2,2624.8,1.49503402]
[1750081504302,4.1787031,2625.1,2625.0,1.88347239]
[1750081504700,4.1787031,2625.1,2625.0,1.88349239]
[1750081504901,0.00570347,2625.2,2625.1,0.76174]
[1750081505103,0.6568,2625.6,2625.5,0.76162]
[1750081505304,3.2078,2626.1,2625.5,3.2078]
[1750081505510,11.35709506,2626.3,2625.5,3.2078]
[1750081505511,9.45356506,2626.0,2625.5,4.70157695]
[1750081505809,9.45356506,2626.0,2625.9,3.2078]
[1750081505810,4.1787031,2626.0,2625.9,3.2078]
[1750081506008,0.76149,2626.0,2625.8,3.96931]
[1750081506200,4.1787031,2625.9,2625.7,1.12033178]
[1750081506396,0.76156,2625.7,2625.6,1.12605293]
[1750081506606,4.9402631,2625.7,2625.6,0.00572115]
[1750081507102,4.9402631,2625.7,2625.3,1.12014008]
[1750081507103,0.76165,2625.4,2625.3,1.12014008]
[1750081507411,3.2078,2625.7,2625.3,1.12014008]
[1750081507594,3.2078,2626.2,2625.5,4.32794008]
[1750081507800,4.1787031,2626.0,2625.9,3.9693]
[1750081508105,4.18442425,2626.2,2625.9,3.2078]
[1750081508314,4.1787031,2626.1,2626.0,1.49496389]
[1750081508806,4.1787031,2626.1,2626.0,0.76147]
[1750081508999,0.00572115,2626.2,2626.1,0.76145]
[1750081509195,0.00572115,2626.2,2626.1,1.88233796]
[1750081509399,0.00572115,2626.2,2626.0,2.25642389]
[1750081509596,0.76145,2626.1,2626.0,1.12001164]
[1750081509801,4.18442425,2626.2,2626.0,1.12001164]
[1750081510105,4.18442425,2626.2,2626.1,0.76145]
[1750081510305,0.00572115,2626.2,2626.1,1.88146164]
[1750081510810,0.00572115,2626.2,2626.1,0.76145]
[1750081511001,1.90288,2627.2,2626.1,7.2448311]
[1750081511198,9.45356506,2627.6,2626.6,4.70233598]
[1750081511402,0.76107,2627.4,2627.3,3.2078]
[1750081511607,9.45356506,2627.4,2626.7,1.11959091]
[1750081511909,9.45356506,2626.8,2626.6,1.11959091]
[1750081512205,4.1787031,2626.8,2626.7,3.2078]
[1750081512515,0.76118,2627.1,2626.9,0.76119]
[1750081512707,4.1787031,2627.1,2627.0,3.96898]
[1750081512908,9.45356506,2627.5,2627.1,0.76116]
[1750081512909,0.76109,2627.4,2627.1,0.76116]
[1750081513208,0.76109,2627.4,2627.0,3.2078]
[1750081513209,4.9398631,2627.1,2627.0,3.2078]
[1750081513707,5.11034,2627.6,2627.0,4.32739091]
[1750081513708,12.66136506,2627.6,2627.0,4.32739091]
[1750081514010,4.1787031,2627.1,2626.8,1.11959091]
[1750081514201,3.2078,2627.2,2626.6,4.70233598]
[1750081514202,4.9399431,2626.8,2626.7,1.11959091]
[1750081514397,4.9399431,2626.8,2626.7,0.76127]
[1750081514398,4.1787031,2626.8,2626.7,0.76127]
[1750081514598,3.2078,2627.2,2626.6,4.32739091]
[1750081514803,4.1787031,2627.2,2626.9,4.32739091]
[1750081515004,4.1787031,2627.0,2626.9,0.76119]
[1750081515203,3.2078,2627.7,2627.3,0.76109]
[1750081515408,3.2078,2627.7,2627.3,3.2078]
[1750081515409,4.9397731,2627.4,2627.3,3.2078]
[1750081515711,4.9397931,2627.4,2627.3,4.51171887]
[1750081515899,0.6623,2627.8,2627.3,4.51171887]
[1750081516208,4.9397431,2627.5,2627.4,1.30391887]
[1750081516407,10.21460506,2627.5,2627.4,1.30391887]
[1750081516606,4.9397431,2627.5,2627.4,1.30391887]
[1750081516809,10.11586506,2627.8,2627.4,2.06497887]
[1750081517115,4.9397431,2627.5,2627.4,0.76107]
[1750081517303,5.10974,2628.5,2627.5,0.76104]
[1750081517498,4.1787031,2627.8,2627.7,3.96878]
[1750081517703,4.1787031,2627.9,2627.8,0.76095]
[1750081517903,4.1787031,2627.9,2627.8,2.05236678]
[1750081518109,0.6444,2628.5,2627.9,1.90232]
[1750081518305,0.6444,2628.5,2627.8,2.05236678]
[1750081518306,4.1787031,2628.2,2628.1,3.96867]
[1750081518514,3.2078,2628.8,2628.2,1.9021]
[1750081518717,4.1787031,2628.4,2628.3,2.05222678]
[1750081518911,4.1787031,2628.4,2628.3,5.26002678]
[1750081519115,4.9394831,2628.4,2628.3,4.49921678]
[1750081519410,0.76065,2628.9,2628.3,4.49921678]
[1750081519615,3.2078,2629.6,2628.6,3.2078]
[1750081519813,3.2078,2629.6,2628.3,1.90198]
[1750081519814,0.76063,2628.9,2628.8,0.00570961]
[1750081520004,4.1787031,2629.4,2628.8,4.49620979]
[1750081520313,4.1787031,2629.3,2628.9,1.28270018]
[1750081520610,4.1787031,2629.3,2629.2,3.2078]
[1750081520801,3.2078,2630.0,2629.2,8.2078]
[1750081521004,0.76046,2629.5,2629.2,3.2078]
[1750081521215,4.1787031,2629.6,2629.3,0.76051]
[1750081521403,0.76039,2629.8,2629.5,0.76045]
[1750081521600,3.2078,2630.0,2629.5,3.2078]
[1750081521808,2.05799603,2630.8,2629.5,3.2078]
[1750081522010,2.05799603,2630.8,2629.8,3.2078]
[1750081522011,4.9390231,2630.0,2629.8,3.2078]
[1750081522212,4.1787031,2629.9,2629.8,3.2078]
[1750081522509,5.5321031,2629.9,2629.8,3.2078]
[1750081522811,2.05800603,2630.8,2629.8,8.2078]
[1750081522812,0.15772603,2630.8,2629.8,8.2078]
[1750081523109,4.1787031,2630.2,2629.9,5.7913607]
[1750081523312,4.1787031,2630.0,2629.9,3.2078]
[1750081523501,4.1787031,2630.0,2629.6,3.96823]
[1750081523703,4.1787031,2629.5,2629.4,0.76049]
[1750081523907,4.1787031,2629.5,2629.3,3.96831]
[1750081524108,4.1787031,2629.5,2629.3,3.2078]
[1750081524304,4.1787031,2629.4,2629.3,3.2078]
[1750081524713,5.4623031,2629.4,2629.3,3.2078]
[1750081525107,6.2227931,2629.4,2629.3,3.2078]
[1750081525512,3.2078,2630.3,2629.3,3.2078]
[1750081525715,1.2836,2630.3,2629.9,3.2078]
[1750081525912,4.1787031,2630.0,2629.9,3.2078]
[1750081526108,5.4623031,2630.0,2629.9,3.2078]
[1750081526313,6.2226231,2630.0,2629.9,3.2078]
[1750081526517,5.4623031,2630.0,2629.6,3.2078]
[1750081526716,1.2836,2630.0,2629.9,3.96815]
[1750081526912,9.45356506,2630.4,2629.9,3.96813]
[1750081527117,4.1787031,2630.1,2629.9,3.2078]
[1750081527318,4.9390231,2630.0,2629.9,3.2078]
[1750081527516,4.9390231,2630.0,2629.9,3.31307377]
[1750081527718,0.76032,2630.0,2629.9,3.31307377]
[1750081527918,1.2658,2630.1,2629.9,4.07339377]
[1750081528226,4.1787031,2630.0,2629.9,4.07342377]
[1750081528614,4.9390231,2630.0,2629.9,0.10527377]
[1750081528809,3.2078,2630.6,2630.1,0.76028]
[1750081529020,4.1787031,2630.1,2630.0,0.7603]
[1750081529324,1.2658,2630.4,2630.3,0.76023]
[1750081529625,5.4445031,2630.4,2630.3,0.86550377]
[1750081529813,4.1787031,2630.4,2630.3,0.86550377]
[1750081530011,1.42253,2630.7,2630.5,0.76016]
[1750081530211,1.42254,2630.7,2630.6,3.2078]
[1750081530611,0.7602,2630.4,2630.3,0.00570961]
[1750081530817,0.7602,2630.4,2630.3,0.11098338]
[1750081530818,14.39246816,2630.4,2630.3,0.11098338]